bitfinex/quotes_ETHUSD_20240630
["timestamp","ask_amount","ask_price","bid_price","bid_amount"]
[1719789533746,7.31215622,3451.2,3451.1,0.04513175]
[1719789533946,7.31215622,3451.2,3450.6,0.825]
[1719789534179,7.31215622,3451.2,3451.1,0.04513175]
[1719789534414,7.31215622,3451.2,3450.6,0.825]
[1719789534891,7.31215622,3451.2,3450.7,0.04549677]
[1719789535412,2.4706,3451.4,3450.4,0.825]
[1719789535612,5.4706,3451.4,3450.4,0.825]
[1719789536177,5.4706,3451.4,3450.5,0.05795322]
[1719789536719,5.4706,3451.4,3450.4,0.825]
[1719789539311,0.825,3451.3,3450.4,0.825]
[1719789539682,2.3742,3451.2,3449.3,2.3693]
[1719789539879,2.3742,3451.2,3450.3,0.825]
[1719789540077,2.3742,3451.2,3450.4,0.0457333]
[1719789545909,0.825,3451.0,3450.4,0.0457333]
[1719789546110,2.3742,3450.9,3450.4,0.0457333]
[1719789546410,0.31992,3450.8,3450.0,0.825]
[1719789546584,0.31992,3450.8,3450.5,0.04150325]
[1719789546789,0.31992,3450.8,3450.0,0.825]
[1719789546993,0.31992,3450.8,3450.6,0.04142027]
[1719789547191,0.351912,3450.7,3450.0,0.825]
[1719789547391,2.3742,3450.9,3450.7,0.0413373]
[1719789547604,2.3742,3450.9,3450.0,0.825]
[1719789547804,2.3742,3450.9,3450.8,0.04537977]
[1719789548023,2.3742,3450.9,3450.0,0.825]
[1719789548321,2.3742,3450.9,3450.1,0.04602495]
[1719789548903,2.69412,3450.9,3450.1,0.04602495]
[1719789549631,2.3181,3450.7,3450.1,0.04602495]
[1719789550800,2.3181,3450.7,3450.0,0.825]
[1719789551345,2.3181,3450.7,3450.1,0.04188044]
[1719789551752,2.3181,3450.7,3450.0,0.825]
[1719789552296,2.3181,3450.7,3450.1,0.04188044]
[1719789563127,2.3181,3450.7,3449.6,3.0923]
[1719789563344,0.825,3450.6,3449.7,0.0422141]
[1719789563541,3.0,3451.1,3449.7,0.0422141]
[1719789563542,0.825,3450.4,3449.7,0.0422141]
[1719789563746,2.4115,3450.3,3449.7,0.0422141]
[1719789566726,2.4115,3450.3,3449.5,0.825]
[1719789566926,2.4115,3450.3,3449.6,0.04229712]
[1719789573158,3.2237,3450.5,3449.6,0.04229712]
[1719789573630,2.3987,3450.5,3449.7,0.825]
[1719789573830,2.3987,3450.5,3449.8,2.3458]
[1719789574070,2.3987,3450.5,3449.8,2.38445129]
[1719789574430,2.3987,3450.5,3449.8,2.3458]
[1719789574633,2.3987,3450.5,3449.9,0.04208203]
[1719789574877,3.40232695,3450.5,3449.9,0.04208203]
[1719789575173,1.00362695,3450.5,3449.9,0.04208203]
[1719789575348,3.0,3450.6,3449.9,0.04208203]
[1719789575666,3.825,3450.7,3449.9,0.04208203]
[1719789576156,3.825,3450.7,3449.8,2.3458]
[1719789580061,0.825,3450.5,3449.8,2.3458]
[1719789580403,3.0,3450.7,3449.8,2.3458]
[1719789580404,0.825,3450.3,3449.8,2.3458]
[1719789580693,0.825,3450.3,3449.1,2.3458]
[1719789580860,0.825,3450.3,3449.9,0.04208203]
[1719789581051,0.825,3450.3,3449.4,2.3458]
[1719789581290,0.825,3450.3,3450.0,0.04199902]
[1719789581495,0.825,3450.3,3449.4,2.3458]
[1719789581496,1.201357,3450.3,3449.4,2.3458]
[1719789581697,1.201357,3450.3,3450.1,0.04191602]
[1719789581899,1.201357,3450.3,3449.4,2.3458]
[1719789582057,1.201357,3450.3,3445.8,2.90203]
[1719789582058,2.3987,3449.5,3447.8,0.25114724]
[1719789582258,0.825,3448.1,3447.8,0.25114724]
[1719789582486,1.50531972,3449.4,3447.8,0.25114724]
[1719789582487,0.05797505,3449.3,3447.8,0.25114724]
[1719789582685,0.825,3448.7,3447.8,0.25114724]
[1719789582869,2.3987,3449.1,3447.8,0.25114724]
[1719789582870,0.05797505,3448.6,3447.8,0.25114724]
[1719789583170,0.825,3448.3,3447.8,0.25114724]
[1719789583377,0.825,3448.1,3447.8,0.25114724]
[1719789583563,3.0,3448.8,3447.8,0.25114724]
[1719789583765,0.825,3448.4,3447.8,0.25114724]
[1719789583997,0.05797505,3448.3,3447.9,0.04178011]
[1719789585179,0.05797505,3448.8,3448.0,0.88300372]
[1719789585469,0.825,3449.0,3448.0,0.92470073]
[1719789585693,0.825,3448.8,3448.0,0.09970073]
[1719789585866,0.05797505,3448.7,3448.0,0.09970073]
[1719789586918,0.05797505,3448.7,3448.0,0.92470073]
[1719789587279,0.05797505,3448.9,3448.0,0.86669701]
[1719789589416,0.825,3448.8,3448.0,0.825]
[1719789589716,0.05797505,3448.7,3448.0,0.825]
[1719789590096,0.05797505,3448.7,3448.1,0.04577531]
[1719789590531,0.05797505,3448.9,3448.1,0.04577531]
[1719789590883,3.355,3449.3,3448.4,0.825]
[1719789590884,0.05797505,3449.2,3448.4,0.825]
[1719789591099,1.13048818,3449.2,3448.4,0.825]
[1719789591323,0.05797505,3449.2,3448.4,0.825]
[1719789591490,0.05797505,3449.2,3448.5,0.04540973]
[1719789592913,0.05797505,3449.2,3448.4,0.825]
[1719789593132,0.88297505,3449.2,3448.2,3.2361]
[1719789593503,0.88297505,3449.2,3448.3,0.04572061]
[1719789595330,0.05797505,3449.2,3448.4,0.825]
[1719789595630,0.05797505,3449.2,3448.5,0.04553783]
[1719789597337,8.13715622,3449.4,3448.6,0.825]
[1719789597338,0.05797505,3449.3,3448.6,0.825]
[1719789601234,0.825,3449.6,3448.6,0.825]
[1719789601235,0.05797505,3449.5,3448.6,0.825]
[1719789601433,1.39925067,3449.5,3448.6,0.825]
[1719789603843,9.58775622,3449.8,3449.3,0.825]
[1719789604001,12.47,3450.5,3449.5,0.825]
[1719789604002,7.31215622,3450.3,3449.5,0.825]
[1719789604424,0.05797505,3450.2,3449.5,0.825]
[1719789604835,0.05797505,3450.2,3449.3,0.825]
[1719789605540,3.05797505,3450.2,3449.3,0.825]
[1719789610158,0.05797505,3450.2,3449.3,0.825]
[1719789610363,0.63079751,3450.1,3449.3,0.825]
[1719789610559,0.05797505,3450.0,3449.3,0.825]
[1719789611234,0.05797505,3450.0,3449.1,0.825]
[1719789611557,2.2716,3449.8,3448.8,2.3653]
[1719789611733,0.05797505,3449.7,3448.9,0.825]
[1719789611937,0.05797505,3449.7,3449.1,0.825]
[1719789612243,0.05797505,3449.7,3449.2,0.04758648]
[1719789613053,0.05797505,3450.0,3449.2,0.04758648]
[1719789613231,0.36884614,3449.9,3449.2,0.04758648]
[1719789613438,0.05797505,3449.8,3449.1,0.825]
[1719789613837,0.05797505,3449.8,3449.2,0.04758648]
[1719789615269,0.05797505,3450.0,3449.3,0.825]
[1719789615425,0.05797505,3450.0,3449.5,0.825]
[1719789615961,2.4959,3450.4,3449.6,0.05797171]
[1719789616164,0.05797505,3450.6,3450.2,0.825]
[1719789616539,0.05797505,3450.6,3450.0,0.825]
[1719789617227,0.05797505,3450.7,3450.0,0.825]
[1719789618428,0.05797505,3450.9,3450.4,0.825]
[1719789620365,0.05797505,3450.9,3450.2,0.825]
[1719789620862,0.05797505,3450.9,3450.3,0.04642327]
[1719789622830,0.05797505,3450.9,3450.4,0.825]
[1719789624344,0.05797505,3450.9,3450.2,0.825]
[1719789624874,0.05797505,3450.9,3450.3,0.04642327]
[1719789625740,1.22218765,3450.9,3450.3,0.04642327]
[1719789626875,3.05797505,3451.0,3450.4,0.825]
[1719789627168,0.05797505,3451.0,3450.6,0.825]
[1719789628944,0.05797505,3451.0,3450.4,0.825]
[1719789630184,0.05797505,3451.0,3450.6,0.825]
[1719789632509,0.05797505,3450.7,3450.0,0.88793744]
[1719789633305,0.05797505,3450.7,3450.3,0.825]
[1719789633885,0.05797505,3450.7,3449.7,1.979]
[1719789634199,0.05797505,3450.7,3450.4,0.06268977]
[1719789634380,0.05797505,3450.7,3449.7,1.979]
[1719789634781,0.05797505,3450.7,3449.8,0.0630613]
[1719789638887,0.05797505,3450.7,3449.3,1.979]
[1719789638888,2.3462,3450.6,3449.3,1.979]
[1719789639091,0.29839256,3450.5,3449.9,0.06300173]
[1719789639414,0.29839256,3450.5,3449.3,2.27046912]
[1719789639829,0.29839256,3450.5,3449.4,0.06332378]
[1719789641712,0.05797505,3450.5,3449.4,0.06332378]
[1719789642575,0.05797505,3450.5,3449.5,0.05796908]
[1719789643050,0.05797505,3450.5,3449.6,0.06321284]
[1719789643175,0.05797505,3450.5,3449.7,0.0579691]
[1719789643584,2.3415,3450.9,3449.8,2.34278426]
[1719789643880,0.05797505,3450.8,3449.8,2.34278426]
[1719789646847,2.39947505,3450.9,3449.9,0.05796242]
[1719789647180,2.39947505,3450.9,3449.9,0.12096768]
[1719789647995,2.3415,3450.9,3449.9,0.06300526]
[1719789650861,0.05797505,3450.8,3449.9,0.06300526]
[1719789652011,2.3415,3450.9,3449.9,0.06300526]
[1719789653215,2.3415,3450.9,3450.1,1.979]
[1719789653409,2.3415,3450.9,3450.2,0.05795897]
[1719789653759,7.31215622,3451.2,3450.5,1.979]
[1719789653908,2.3077,3451.4,3450.5,1.979]
[1719789654117,2.3077,3451.4,3450.6,0.12050313]
[1719789657987,0.05797505,3451.3,3450.6,0.06255244]
[1719789659768,0.05797505,3451.3,3450.3,2.2534]
[1719789659974,0.05797505,3451.3,3450.7,0.06242346]
[1719789660179,0.29454256,3451.3,3450.3,2.2534]
[1719789660390,0.05797505,3451.3,3450.8,0.06236157]
[1719789660694,0.05797505,3451.3,3450.3,2.2534]
[1719789661039,0.05797505,3451.3,3450.9,0.06229967]
[1719789661278,0.05797505,3451.3,3450.3,2.2534]
[1719789661486,0.05797505,3451.3,3451.0,0.06223778]
[1719789661852,0.05797505,3451.3,3450.3,2.2534]
[1719789662140,0.05797505,3451.3,3451.1,0.06218119]
[1719789662375,0.05797505,3451.3,3450.3,2.2534]
[1719789662736,0.05797505,3451.3,3450.4,0.06261447]
[1719789665881,0.05797505,3451.3,3450.9,0.824]
[1719789666191,0.05797505,3451.6,3451.1,0.824]
[1719789666538,0.05797505,3451.6,3451.2,0.0621193]
[1719789668254,0.05797505,3451.6,3450.9,2.26]
[1719789668845,0.05797505,3451.6,3451.0,0.06224307]
[1719789669043,0.05797505,3451.6,3451.0,0.30026249]
[1719789669441,2.3488,3451.7,3451.0,0.30026249]
[1719789669842,2.37877505,3451.7,3451.0,0.23801942]
[1719789671595,2.37877505,3451.7,3451.0,0.38201942]
[1719789672091,7.31215622,3451.8,3451.1,0.05794914]
[1719789672256,7.31215622,3451.8,3451.3,2.3902]
[1719789672593,3.0,3452.1,3451.3,2.4481425]
[1719789672788,3.02997505,3452.1,3451.3,2.4481425]
[1719789673091,0.02997505,3452.1,3451.4,0.06197145]
[1719789673904,7.31215622,3452.3,3451.5,2.3902]
[1719789674104,7.31215622,3452.3,3451.6,0.05793599]
[1719789674275,0.02997505,3452.2,3451.6,0.05793599]
[1719789674460,0.02997505,3452.2,3451.6,0.11974253]
[1719789674964,7.31215622,3452.3,3451.6,0.11974253]
[1719789675706,7.31215622,3452.3,3451.6,0.05793599]
[1719789677579,0.02997505,3452.2,3451.6,0.05793599]
[1719789677824,0.02997505,3452.2,3451.5,2.3902]
[1719789678336,0.02997505,3452.2,3451.4,1.978]
[1719789678722,0.02997505,3452.4,3451.4,1.978]
[1719789680337,0.02997505,3452.4,3451.5,0.05793705]
[1719789680737,0.02997505,3452.4,3451.6,2.4137]
[1719789682617,0.30278221,3452.3,3451.6,2.4137]
[1719789684691,0.30278221,3452.3,3451.7,0.06170882]
[1719789684890,2.3123,3452.5,3451.7,0.11964592]
[1719789687929,2.3123,3452.5,3452.2,0.824]
[1719789688232,0.30278602,3452.4,3452.2,0.824]
[1719789688442,0.30278602,3452.4,3452.3,0.06133771]
[1719789688729,0.30278602,3452.4,3452.2,0.824]
[1719789689211,0.30278602,3452.4,3452.3,0.06133771]
[1719789689540,0.30278602,3452.4,3452.2,0.824]
[1719789689730,2.4492,3452.7,3452.3,0.06133771]
[1719789689924,2.4492,3452.7,3452.4,0.824]
[1719789691408,0.02997505,3452.6,3452.4,0.824]
[1719789691715,0.02997505,3452.6,3452.5,0.06121403]
[1719789691925,0.02997505,3452.6,3452.2,0.824]
[1719789692131,0.02997505,3452.6,3452.5,0.06121403]
[1719789692442,0.02997505,3452.6,3452.2,0.824]
[1719789692625,0.33277645,3452.6,3452.5,0.06121403]
[1719789692826,0.33277645,3452.6,3452.2,0.824]
[1719789693026,0.33277645,3452.6,3452.5,0.06121403]
[1719789693547,0.33277645,3452.6,3452.2,0.824]
[1719789694109,0.33277645,3452.6,3451.5,2.3635]
[1719789694110,2.4492,3452.5,3451.5,2.3635]
[1719789694255,0.02997505,3452.4,3452.3,0.06133771]
[1719789694571,0.02997505,3452.4,3451.8,0.824]
[1719789694784,0.02997505,3452.4,3452.3,0.06132654]
[1719789694931,0.02997505,3452.4,3452.0,0.824]
[1719789695128,0.02997505,3452.4,3452.3,0.06132654]
[1719789695353,0.02997505,3452.4,3452.0,0.824]
[1719789695555,0.02997505,3452.4,3452.3,0.0612948]
[1719789695729,0.02997505,3452.4,3452.0,0.824]
[1719789695928,0.02997505,3452.4,3452.3,0.0612948]
[1719789696167,0.02997505,3452.4,3452.0,0.824]
[1719789696372,0.02997505,3452.4,3452.3,0.0612948]
[1719789696547,0.02997505,3452.4,3452.0,0.824]
[1719789696746,0.02997505,3452.4,3452.3,0.0612948]
[1719789696990,0.02997505,3452.4,3452.0,0.824]
[1719789697345,0.02997505,3452.4,3452.1,0.06141849]
[1719789698986,2.427,3452.3,3451.6,0.824]
[1719789699279,0.02997505,3452.2,3451.6,0.824]
[1719789699947,0.02997505,3452.2,3451.8,0.824]
[1719789700284,0.27567256,3452.2,3451.2,2.3778]
[1719789700479,2.3771,3452.1,3451.5,0.824]
[1719789700657,0.02997505,3452.0,3451.5,0.824]
[1719789702753,0.02997505,3452.0,3451.7,0.824]
[1719789704059,0.02997505,3452.0,3451.8,0.05979015]
[1719789704297,0.02997505,3452.0,3451.7,0.824]
[1719789704472,0.02997505,3452.0,3451.8,0.05979015]
[1719789704793,0.02997505,3452.0,3451.7,0.824]
[1719789705200,0.02997505,3452.0,3451.8,0.05979015]
[1719789705496,0.02997505,3452.0,3451.7,0.824]
[1719789705662,0.02997505,3452.0,3451.8,0.05979015]
[1719789705863,0.02997505,3452.0,3451.7,0.824]
[1719789706063,0.02997505,3452.0,3451.8,0.05981072]
[1719789706483,0.02997505,3452.0,3451.7,0.824]
[1719789706696,0.02997505,3452.0,3451.8,0.05981072]
[1719789706965,0.02997505,3452.0,3451.7,0.824]
[1719789707402,0.02997505,3452.0,3451.8,0.05981072]
[1719789707761,0.02997505,3452.0,3451.7,0.824]
[1719789708199,0.02997505,3452.0,3451.8,0.05981072]
[1719789708501,0.02997505,3452.0,3451.7,0.824]
[1719789708875,0.30276624,3452.1,3451.9,0.824]
[1719789709277,0.30276624,3452.1,3452.0,0.05968701]
[1719789712792,0.30276624,3452.1,3452.0,2.42138701]
[1719789715671,0.02997505,3452.7,3452.0,0.05968701]
[1719789715865,0.02997505,3452.7,3452.2,0.824]
[1719789718601,10.31215622,3452.9,3452.2,0.824]
[1719789718602,2.3916,3452.6,3452.2,0.824]
[1719789718770,0.02997505,3452.5,3452.3,0.05948029]
[1719789718970,0.02997505,3452.5,3452.2,0.824]
[1719789719370,0.02997505,3452.5,3452.3,0.05948029]
[1719789719610,0.02997505,3452.5,3452.2,0.824]
[1719789720013,0.02997505,3452.5,3452.3,0.05948029]
[1719789720310,0.02997505,3452.5,3452.2,0.824]
[1719789720472,0.02997505,3452.5,3452.3,0.05948029]
[1719789720673,0.02997505,3452.5,3452.1,0.824]
[1719789720909,0.02997505,3452.5,3452.2,0.05954213]
[1719789721079,0.02997505,3452.5,3452.2,0.824]
[1719789721279,0.02997505,3452.5,3452.3,0.05948029]
[1719789721475,0.02997505,3452.5,3452.2,0.824]
[1719789721809,0.02997505,3452.5,3452.3,0.05948029]
[1719789722012,0.02997505,3452.5,3452.2,0.824]
[1719789722414,0.02997505,3452.5,3452.3,0.05948029]
[1719789722908,0.02997505,3452.5,3452.2,0.824]
[1719789723110,0.02997505,3452.5,3452.3,0.05948029]
[1719789723274,0.02997505,3452.5,3452.4,0.824]
[1719789724511,2.69438446,3452.6,3452.4,0.824]
[1719789725287,0.02997505,3452.5,3452.4,0.824]
[1719789728095,2.560211,3452.5,3451.1,2.4637]
[1719789728435,3.98634486,3452.4,3451.2,0.05815752]
[1719789728732,3.98634486,3452.4,3451.6,0.824]
[1719789728733,2.2578,3451.9,3451.6,0.824]
[1719789728895,2.2578,3451.9,3451.8,0.824]
[1719789729103,2.2578,3451.9,3451.6,0.824]
[1719789729305,0.02997505,3451.8,3451.7,0.05050266]
[1719789729546,0.02997505,3451.8,3451.6,0.824]
[1719789730235,0.02997505,3451.8,3451.7,0.05050266]
[1719789730599,0.02997505,3451.8,3451.6,0.824]
[1719789730802,2.2578,3451.9,3451.6,0.824]
[1719789731021,2.2578,3452.3,3451.8,0.824]
[1719789731219,2.2578,3452.3,3452.2,0.824]
[1719789731536,2.2578,3452.3,3452.2,0.8742289]
[1719789731742,2.2578,3452.3,3452.2,0.0502289]
[1719789731944,2.2578,3452.3,3452.0,0.824]
[1719789732302,2.2578,3452.3,3452.1,0.05029074]
[1719789732499,0.02997505,3452.2,3452.0,0.824]
[1719789732750,0.25875256,3452.2,3452.1,0.05029074]
[1719789733041,0.25875256,3452.2,3451.6,0.824]
[1719789733410,0.25875256,3452.2,3451.7,0.0505178]
[1719789734010,0.56154813,3452.2,3451.6,0.824]
[1719789734256,0.56154813,3452.2,3451.8,0.05045593]
[1719789734424,0.28193481,3452.1,3451.7,0.0505178]
[1719789734607,0.02997505,3452.0,3451.9,0.05039408]
[1719789734807,0.02997505,3452.0,3451.6,0.824]
[1719789735047,0.02997505,3452.0,3451.9,0.0504063]
[1719789735223,0.02997505,3452.0,3451.6,0.824]
[1719789735547,0.02997505,3452.0,3451.7,0.05053002]
[1719789737647,0.02997505,3452.1,3451.8,0.824]
[1719789738660,0.33277062,3452.2,3451.8,0.824]
[1719789741401,7.31215622,3452.5,3452.0,0.824]
[1719789741402,0.02997505,3452.4,3452.0,0.824]
[1719789744315,0.30281324,3452.3,3452.0,0.824]
[1719789745767,0.02997505,3452.4,3452.0,0.824]
[1719789747162,0.02997505,3452.5,3452.0,0.824]
[1719789747577,2.3773,3452.4,3451.3,2.2511]
[1719789747789,0.02997505,3452.3,3452.1,0.04883323]
[1719789747993,0.02997505,3452.3,3451.6,0.824]
[1719789748176,0.02997505,3452.3,3452.2,0.04735569]
[1719789748500,0.02997505,3452.3,3451.6,0.824]
[1719789748890,0.33279467,3452.3,3451.7,0.04766497]
[1719789749092,0.90380414,3452.3,3451.7,0.04766497]
[1719789750191,2.4948,3452.2,3451.7,0.04766497]
[1719789750527,0.02997505,3452.1,3451.6,0.824]
[1719789750824,0.02997505,3452.1,3451.7,0.04767193]
[1719789753584,0.02997505,3452.1,3451.9,0.824]
[1719789753976,0.02997505,3452.1,3452.0,0.04750382]
[1719789759274,0.30281962,3452.3,3452.0,0.04750382]
[1719789759619,0.30281962,3452.3,3452.1,0.824]
[1719789763179,0.02997505,3452.4,3452.1,0.824]
[1719789766207,0.30285272,3452.3,3452.1,0.824]
[1719789768221,0.02997505,3452.4,3452.1,0.824]
[1719789769019,0.02997505,3452.7,3452.3,0.824]
[1719789770481,0.26329255,3452.7,3452.1,0.824]
[1719789770886,0.26329255,3452.7,3452.2,0.04600358]
[1719789771080,0.3028757,3452.6,3451.9,0.824]
[1719789771287,0.02997505,3452.5,3451.9,0.824]
[1719789771504,0.02997505,3452.5,3452.0,0.04612728]
[1719789773425,2.4404,3452.4,3451.3,2.2943]
[1719789773585,0.02997505,3452.3,3451.7,0.824]
[1719789774128,0.02997505,3452.3,3451.8,0.04624692]
[1719789774288,0.02997505,3452.3,3451.7,0.824]
[1719789774686,0.02997505,3452.3,3451.8,0.04624692]
[1719789774932,0.02997505,3452.3,3451.7,0.824]
[1719789775308,0.02997505,3452.3,3451.8,0.04624692]
[1719789775706,0.02997505,3452.3,3451.3,2.2943]
[1719789776012,0.02997505,3452.3,3451.8,0.824]
[1719789776431,0.02997505,3452.3,3451.9,0.04618506]
[1719789778540,0.02997505,3452.3,3452.0,0.824]
[1719789778896,0.02997505,3452.3,3452.1,0.04606136]
[1719789779232,0.02997505,3452.3,3451.8,0.824]
[1719789779634,0.02997505,3452.3,3451.9,0.04618506]
[1719789781109,0.02997505,3452.3,3452.0,0.824]
[1719789781632,0.02997505,3452.3,3452.1,0.04606136]
[1719789781934,0.02997505,3452.3,3452.0,0.824]
[1719789782242,0.02997505,3452.3,3452.1,0.04606136]
[1719789782392,0.02997505,3452.3,3452.0,0.824]
[1719789782596,0.02997505,3452.3,3452.2,0.04599951]
[1719789782793,0.02997505,3452.3,3452.0,0.824]
[1719789782994,0.02997505,3452.3,3452.2,0.04599951]
[1719789783224,0.02997505,3452.3,3452.0,0.824]
[1719789783430,0.02997505,3452.3,3452.2,0.04600708]
[1719789783599,0.02997505,3452.3,3452.0,0.824]
[1719789783804,0.02997505,3452.3,3452.2,0.04600708]
[1719789784108,0.33283531,3452.3,3452.0,0.824]
[1719789784308,0.02997505,3452.2,3452.0,0.824]
[1719789784634,0.02997505,3452.2,3452.1,0.04606892]
[1719789784865,0.02997505,3452.2,3452.0,0.824]
[1719789785130,0.02997505,3452.2,3452.1,0.04606892]
[1719789785511,0.02997505,3452.2,3452.0,0.824]
[1719789785833,0.02997505,3452.2,3452.1,0.04606892]
[1719789786245,0.02997505,3452.2,3452.0,0.824]
[1719789786458,0.02997505,3452.2,3452.1,0.04606892]
[1719789786747,0.02997505,3452.2,3452.0,0.824]
[1719789786910,0.30286026,3452.3,3452.0,0.824]
[1719789787118,0.30286026,3452.3,3452.2,0.824]
[1719789787531,0.30286026,3452.3,3452.2,0.87000708]
[1719789787934,2.35307505,3452.7,3452.2,0.87000708]
[1719789788134,2.35307505,3452.7,3452.4,0.824]
[1719789788918,0.02997505,3452.6,3452.4,0.824]
[1719789789122,4.04934065,3453.1,3452.4,0.824]
[1719789789123,2.35307505,3453.0,3452.4,0.824]
[1719789789319,0.54240411,3452.9,3452.6,0.824]
[1719789789527,0.02997505,3452.8,3452.4,0.824]
[1719789790727,2.3231,3453.0,3452.4,0.824]
[1719789791052,0.30290537,3452.7,3452.4,0.824]
[1719789792419,0.30290537,3452.7,3452.5,0.04580235]
[1719789793522,0.30290537,3452.7,3452.2,0.824]
[1719789793523,2.3667,3452.6,3452.2,0.824]
[1719789794325,2.3667,3452.6,3452.3,0.04592602]
[1719789794763,2.3667,3452.6,3452.2,0.824]
[1719789794918,2.3667,3452.6,3452.4,0.04585078]
[1719789795122,0.02997505,3452.5,3452.3,0.04591262]
[1719789795361,0.02997505,3452.5,3452.1,0.824]
[1719789796873,0.33287216,3452.5,3452.1,0.824]
[1719789800036,0.33287216,3452.5,3451.6,2.3689]
[1719789800037,0.60282938,3452.5,3451.6,2.3689]
[1719789800243,0.60282938,3452.5,3452.0,0.824]
[1719789805875,0.29993227,3452.5,3452.0,0.824]
[1719789808764,0.60281584,3452.5,3452.0,0.824]
[1719789808958,0.29695158,3452.4,3452.0,0.824]
[1719789809159,0.02997505,3452.3,3452.1,0.04604563]
[1719789814487,2.4983,3452.2,3452.1,5.63e-06]
[1719789814803,3.4849417,3452.2,3451.0,0.824]
[1719789814996,2.4983,3451.9,3451.0,0.824]
[1719789815174,2.52827505,3451.8,3451.0,0.824]
[1719789815499,0.02997505,3451.7,3451.0,0.824]
[1719789815903,0.02997505,3451.7,3450.9,0.824]
[1719789816129,2.4983,3451.6,3450.9,0.824]
[1719789816290,0.28280256,3451.5,3450.9,0.824]
[1719789817206,0.28280256,3451.5,3451.1,0.824]
[1719789818434,0.02997505,3451.5,3451.1,0.824]
[1719789820625,0.02997505,3451.5,3450.6,3.0]
[1719789820833,0.02997505,3451.5,3451.0,0.824]
[1719789821715,0.02997505,3451.5,3450.6,3.0]
[1719789821716,0.02997505,3451.5,3451.2,0.824]
[1719789822099,0.02997505,3451.5,3451.4,0.824]
[1719789822317,2.3226,3451.9,3451.4,0.824]
[1719789822524,0.29051531,3451.8,3451.4,0.86748608]
[1719789822730,0.02997505,3451.7,3451.4,0.824]
[1719789824620,0.02997505,3451.9,3451.4,0.824]
[1719789824817,0.02997505,3451.9,3451.5,0.0434242]
[1719789832619,0.02997505,3451.9,3451.2,0.824]
[1719789832825,0.60555531,3451.9,3451.2,0.824]
[1719789833057,0.60555531,3451.9,3451.3,0.04357742]
[1719789834528,2.3179,3451.8,3451.3,0.04357742]
[1719789834721,0.60555531,3451.9,3451.3,0.04357742]
[1719789834722,2.3179,3451.6,3451.3,0.04357742]
[1719789834927,0.02997505,3451.5,3450.7,0.824]
[1719789835425,0.34716255,3451.5,3450.8,0.04387992]
[1719789837229,0.824,3451.3,3450.8,0.04387992]
[1719789837453,0.02997505,3451.2,3450.9,0.04385038]
[1719789837653,0.02997505,3451.2,3450.3,3.3239]
[1719789837654,0.37888131,3451.2,3450.3,3.3239]
[1719789837849,0.37888131,3451.2,3451.0,0.04378849]
[1719789838159,0.37888131,3451.2,3450.5,0.824]
[1719789838336,2.69678131,3451.2,3451.1,0.0437266]
[1719789838536,2.34787505,3451.2,3451.1,0.0437266]
[1719789838724,2.34787505,3451.2,3450.5,0.824]
[1719789838931,2.34787505,3451.2,3451.1,0.0437266]
[1719789839249,2.34787505,3451.2,3450.5,0.824]
[1719789839561,0.2347875,3451.1,3450.5,0.824]
[1719789839762,0.02997505,3451.0,3450.5,0.824]
[1719789841034,0.02997505,3451.0,3450.1,2.4999]
[1719789841664,2.4577,3450.8,3449.2,2.2511]
[1719789841873,0.41614255,3450.7,3449.9,0.824]
[1719789842749,1.24014255,3450.7,3449.2,2.54747894]
[1719789842951,0.824,3450.4,3449.3,0.824]
[1719789843151,0.02997505,3450.3,3449.3,0.824]
[1719789843352,0.3311675,3450.2,3449.3,0.824]
[1719789843669,0.02997505,3450.1,3449.5,0.824]
[1719789844355,0.02997505,3450.1,3449.7,0.824]
[1719789846247,0.02997505,3450.1,3449.5,0.824]
[1719789847376,0.02997505,3450.1,3449.4,0.824]
[1719789848450,0.02997505,3450.1,3449.0,2.3090689]
[1719789848652,0.57997505,3450.4,3449.6,0.824]
[1719789849368,0.57997505,3450.4,3449.8,0.824]
[1719789849904,0.57997505,3450.4,3449.6,0.824]
[1719789852323,0.02997505,3450.4,3449.8,0.824]
[1719789853380,0.02997505,3450.4,3449.6,3.2519]
[1719789855286,0.02997505,3450.4,3449.8,0.824]
[1719789855920,0.02997505,3450.4,3450.0,0.824]
[1719789856122,0.02997505,3450.6,3449.8,0.824]
[1719789856887,0.02997505,3450.6,3449.6,0.5176702]
[1719789857508,0.02997505,3450.6,3449.7,0.824]
[1719789858685,2.3587,3450.5,3449.7,0.824]
[1719789858886,0.02997505,3450.4,3449.7,0.824]
[1719789862284,0.33319072,3450.4,3449.4,2.3837]
[1719789862487,0.33319072,3450.4,3449.7,0.824]
[1719789862915,0.33319072,3450.4,3449.8,0.03929991]
[1719789863120,0.33319072,3450.4,3449.7,0.824]
[1719789863320,0.33319072,3450.4,3449.9,0.03923798]
[1719789863489,0.33319072,3450.4,3449.7,0.824]
[1719789863683,0.02997505,3450.4,3450.0,0.03917605]
[1719789863884,0.02997505,3450.4,3449.7,0.824]
[1719789864124,0.02997505,3450.4,3450.1,0.03911413]
[1719789864426,0.02997505,3450.4,3449.7,0.824]
[1719789864721,0.02997505,3450.4,3449.8,0.03929991]
[1719789864914,0.02997505,3450.4,3449.7,0.824]
[1719789865118,0.02997505,3450.4,3449.9,0.03923798]
[1719789865320,0.02997505,3450.4,3449.7,0.824]
[1719789865630,0.02997505,3450.4,3450.0,0.03917605]
[1719789865836,2.3587,3450.5,3449.9,0.824]
[1719789866000,0.02997505,3450.7,3450.2,0.824]
[1719789866201,2.4729,3450.6,3449.0,5.265]
[1719789866497,0.02997505,3450.5,3449.6,0.824]
[1719789866918,0.02997505,3450.5,3449.7,0.03905928]
[1719789870239,2.4479,3450.4,3449.7,0.03905928]
[1719789870540,0.02997505,3450.3,3449.7,0.03905928]
[1719789871832,2.4479,3450.5,3449.8,0.824]
[1719789872034,0.02997505,3450.4,3449.8,0.824]
[1719789872209,0.02997505,3450.4,3449.9,0.03901173]
[1719789874742,0.02997505,3450.4,3450.0,0.824]